bitfinex/quotes_BTCUSD_20250709
["timestamp","ask_amount","ask_price","bid_price","bid_amount"]
[1752019202197,0.1343511,109070.0,109060.0,0.04908279]
[1752019203278,0.13434949,109070.0,109060.0,0.04908279]
[1752019203910,0.13434949,109070.0,109060.0,0.03398279]
[1752019205532,0.31771796,109070.0,109060.0,0.21736808]
[1752019206397,0.13434949,109070.0,109060.0,0.21736808]
[1752019206809,0.16185349,109070.0,109060.0,0.26007485]
[1752019207037,0.35439038,109070.0,109060.0,0.37418618]
[1752019207500,0.35439038,109070.0,109060.0,0.38335502]
[1752019207841,0.38689038,109070.0,109060.0,0.38335502]
[1752019208049,0.36972514,109070.0,109060.0,0.38335502]
[1752019208259,0.36972514,109070.0,109060.0,0.24487502]
[1752019208445,0.36972514,109070.0,109060.0,0.38343502]
[1752019208849,0.35322514,109070.0,109060.0,0.39260378]
[1752019209059,0.35322514,109070.0,109060.0,0.40977333]
[1752019210684,0.35322514,109070.0,109060.0,0.45099378]
[1752019211313,0.34405739,109070.0,109060.0,0.30326502]
[1752019211535,0.34405739,109070.0,109060.0,0.44186502]
[1752019211737,0.34405739,109070.0,109060.0,0.43269618]
[1752019212040,0.34082114,109070.0,109060.0,0.23093279]
[1752019212203,0.34082114,109070.0,109060.0,0.18971234]
[1752019213060,0.34082114,109070.0,109060.0,0.03398279]
[1752019213245,0.34082114,109070.0,109060.0,0.05115697]
[1752019213462,0.34082114,109070.0,109060.0,0.09237742]
[1752019214539,0.34082114,109070.0,109060.0,0.29410115]
[1752019214746,0.34082114,109070.0,109060.0,0.30327024]
[1752019214946,0.32572114,109070.0,109060.0,0.31243916]
[1752019215753,0.32572114,109070.0,109060.0,0.460248]
[1752019216187,0.11718425,109070.0,109060.0,0.49054741]
[1752019216639,0.13552016,109070.0,109060.0,0.49054741]
[1752019216865,0.13551982,109070.0,109060.0,0.49054741]
[1752019217083,0.11718425,109070.0,109060.0,0.49054741]
[1752019217307,0.11718425,109070.0,109060.0,0.53178395]
[1752019218233,0.11718425,109070.0,109060.0,0.53078395]
[1752019218702,0.11718425,109070.0,109060.0,0.62522088]
[1752019221293,0.11718425,109070.0,109060.0,0.62534088]
[1752019222452,0.11718425,109070.0,109060.0,0.67534088]
[1752019226183,0.11718425,109070.0,109060.0,0.59287789]
[1752019226398,0.11718425,109070.0,109060.0,0.67524205]
[1752019226858,0.11718425,109070.0,109060.0,0.59287789]
[1752019227487,0.11718425,109070.0,109060.0,0.53648033]
[1752019227699,0.11718425,109070.0,109060.0,0.67520033]
[1752019228090,0.11718425,109070.0,109060.0,0.53648033]
[1752019228295,0.11718425,109070.0,109060.0,0.67520033]
[1752019229138,0.11718425,109070.0,109060.0,0.67519433]
[1752019231159,0.11718425,109070.0,109060.0,0.67515433]
[1752019231797,0.11718425,109070.0,109060.0,0.67519433]
[1752019233564,0.11718425,109070.0,109060.0,0.53647433]
[1752019233770,0.11718425,109070.0,109060.0,0.67519433]
[1752019237684,0.11718425,109070.0,109060.0,0.52137433]
[1752019237900,0.11718425,109070.0,109060.0,0.66001433]
[1752019238105,0.11718425,109070.0,109060.0,0.67611433]
[1752019239428,0.11718425,109070.0,109060.0,0.59375189]
[1752019243557,0.11718425,109070.0,109060.0,0.70369454]
[1752019245415,0.03459447,109070.0,109060.0,0.70369454]
[1752019245624,0.03459447,109070.0,109060.0,0.59375189]
[1752019248979,0.03459447,109070.0,109060.0,0.57658971]
[1752019251510,0.03459447,109070.0,109060.0,0.60413971]
[1752019252352,0.03459447,109070.0,109060.0,0.71408236]
[1752019255507,0.00916691,109080.0,109070.0,0.21087271]
[1752019255715,0.25320145,109090.0,109080.0,0.20168623]
[1752019255888,0.25320145,109090.0,109080.0,0.42833938]
[1752019256877,0.25366922,109090.0,109080.0,0.42833938]
[1752019258417,0.2445029,109090.0,109080.0,0.42833938]
[1752019259043,0.2455029,109090.0,109080.0,0.42833938]
[1752019259253,0.2363365,109090.0,109080.0,0.4191723]
[1752019259458,0.2363365,109090.0,109080.0,0.42833971]
[1752019260343,0.2363365,109090.0,109080.0,0.43750704]
[1752019260560,0.2363365,109090.0,109080.0,0.40452425]
[1752019260771,0.2363365,109090.0,109080.0,0.43753781]
[1752019261198,0.2363365,109090.0,109080.0,0.44670505]
[1752019261398,0.2363365,109090.0,109080.0,0.487972]
[1752019261609,0.22716985,109090.0,109080.0,0.47880476]
[1752019262318,0.22716985,109090.0,109080.0,0.487972]
[1752019263317,0.22716985,109090.0,109080.0,0.47880476]
[1752019264207,0.22716985,109090.0,109080.0,0.46963743]
[1752019264432,0.21800311,109090.0,109080.0,0.21284051]
[1752019268397,0.21800311,109090.0,109080.0,0.26783087]
[1752019269372,0.21800311,109090.0,109080.0,0.21280051]
[1752019271906,0.21800311,109090.0,109080.0,0.07428051]
[1752019272126,0.21800311,109090.0,109080.0,0.21284051]
[1752019272737,0.49866571,109090.0,109080.0,0.07428051]
[1752019272914,0.78808004,109090.0,109060.0,0.09629731]
[1752019273121,0.23400472,109070.0,109060.0,0.1293195]
[1752019273432,0.23400472,109070.0,109060.0,0.21292914]
[1752019274673,0.23400472,109070.0,109060.0,0.2220984]
[1752019275939,0.23400472,109070.0,109060.0,0.41465287]
[1752019276144,0.23400472,109070.0,109060.0,0.42482196]
[1752019276369,0.23400472,109070.0,109060.0,0.41665287]
[1752019276672,0.22483672,109070.0,109060.0,0.41665287]
[1752019278403,0.22483672,109070.0,109060.0,0.37538592]
[1752019278581,0.22483672,109070.0,109060.0,0.37542592]
[1752019280168,0.22483672,109070.0,109060.0,0.38459501]
[1752019282690,0.22483672,109070.0,109060.0,0.39376402]
[1752019284478,0.22483672,109070.0,109060.0,0.38459501]
[1752019284876,0.22483672,109070.0,109060.0,0.23674592]
[1752019285099,0.45491365,109070.0,109060.0,0.03502219]
[1752019285538,0.45491365,109070.0,109060.0,0.002]
[1752019287403,0.45491365,109070.0,109060.0,0.01915952]
[1752019292038,0.45491365,109070.0,109060.0,0.002]
[1752019292243,0.45491365,109070.0,109060.0,0.01915362]
[1752019294793,0.79491365,109070.0,109060.0,0.01915362]
[1752019295556,0.80348167,109070.0,109060.0,0.01915362]
[1752019295762,0.79491365,109070.0,109060.0,0.01915362]
[1752019303789,0.78491365,109070.0,109060.0,0.01915362]
[1752019304472,0.7940819,109070.0,109060.0,0.01915362]
[1752019307113,0.6554419,109070.0,109060.0,0.01915362]
[1752019307262,0.7940819,109070.0,109060.0,0.01915362]
[1752019308337,0.7940819,109070.0,109060.0,0.01917549]
[1752019310391,0.7940819,109070.0,109060.0,0.01918072]
[1752019314732,0.6554419,109070.0,109060.0,0.01918072]
[1752019314883,0.7940019,109070.0,109060.0,0.01918072]
[1752019315680,0.7940019,109070.0,109060.0,0.01919934]
[1752019316967,0.6554419,109070.0,109060.0,0.01919934]
[1752019317122,0.7940419,109070.0,109060.0,0.002]
[1752019320299,0.6554419,109070.0,109060.0,0.002]
[1752019320500,0.7940019,109070.0,109060.0,0.002]
[1752019329296,0.81959406,109070.0,109060.0,0.002]
[1752019329876,0.7940019,109070.0,109060.0,0.002]
[1752019334140,0.8215609,109070.0,109060.0,0.002]
[1752019339610,0.8115609,109070.0,109060.0,0.002]
[1752019339808,0.8115609,109070.0,109060.0,0.01921141]
[1752019342697,0.8120809,109070.0,109060.0,0.01921141]
[1752019344985,0.8120409,109070.0,109060.0,0.01921141]
[1752019347906,0.7961409,109070.0,109060.0,0.01921141]
[1752019360255,0.7961409,109070.0,109060.0,0.002]
[1752019362449,0.8118409,109070.0,109060.0,0.002]
[1752019363610,1.3075409,109070.0,109060.0,0.002]
[1752019372112,1.2918409,109070.0,109060.0,0.002]
[1752019374378,1.2754409,109070.0,109060.0,0.002]
[1752019382611,1.2917409,109070.0,109060.0,0.002]
[1752019390929,1.2917409,109070.0,109060.0,0.01920874]
[1752019398587,1.2754409,109070.0,109060.0,0.01920874]
[1752019400633,1.2754409,109070.0,109060.0,0.01920992]
[1752019406368,1.2754409,109070.0,109060.0,0.002]
[1752019406555,1.2754409,109070.0,109060.0,0.0192093]
[1752019416756,1.2754409,109070.0,109060.0,0.002]
[1752019420174,1.2754409,109070.0,109060.0,0.01920962]
[1752019421257,1.2754409,109070.0,109060.0,0.01920964]
[1752019427284,1.2754409,109070.0,109060.0,0.01920974]
[1752019428357,1.2754409,109070.0,109060.0,0.03510974]
[1752019430008,1.2754409,109070.0,109060.0,0.01920974]
[1752019441279,1.36687783,109070.0,109060.0,0.01920974]
[1752019441486,1.32148175,109070.0,109060.0,0.01920974]
[1752019442819,1.32148175,109070.0,109060.0,0.01820974]
[1752019446278,1.32148175,109070.0,109060.0,0.00902976]
[1752019446677,0.54174171,109050.0,109040.0,0.1154]
[1752019446886,0.77177864,109050.0,109040.0,0.1154]
[1752019447287,0.79934064,109050.0,109040.0,0.1154]
[1752019448053,0.79934064,109050.0,109040.0,0.1327467]
[1752019451173,0.79934064,109050.0,109040.0,0.1164467]
[1752019453310,0.79934064,109050.0,109040.0,0.1320467]
[1752019454722,0.81574064,109050.0,109040.0,0.1010467]
[1752019454899,0.87961557,109050.0,109040.0,0.1010467]
[1752019455282,0.87961557,109050.0,109040.0,0.1000467]
[1752019455704,0.88061557,109050.0,109040.0,0.1000467]
[1752019459019,0.89661557,109050.0,109040.0,0.1000467]
[1752019460255,0.92418157,109050.0,109040.0,0.1000467]
[1752019468592,0.93872242,109050.0,109040.0,0.09086407]
[1752019468992,0.93872242,109050.0,109040.0,0.08168144]
[1752019469396,0.54177872,109030.0,109020.0,0.002]
[1752019469595,0.54177872,109030.0,109020.0,0.00608758]
[1752019469596,0.92635565,109030.0,109020.0,0.00608758]
[1752019470165,0.94599333,109030.0,109020.0,0.00608758]
[1752019470358,0.94599333,109030.0,109020.0,0.0020467]
[1752019470906,0.94699333,109030.0,109020.0,0.0020467]
[1752019472006,0.96299333,109030.0,109020.0,0.0020467]
[1752019472451,0.96299333,109030.0,109020.0,0.00608829]
[1752019473007,1.03243212,109030.0,109020.0,0.00608829]
[1752019474941,1.06034868,109030.0,109020.0,0.00608829]
[1752019475146,1.04434868,109030.0,109020.0,0.00608829]
[1752019475582,0.97490989,109030.0,109020.0,0.00608829]
[1752019475791,0.95900989,109030.0,109020.0,0.00608829]
[1752019478969,1.45470989,109030.0,109020.0,0.00608829]
[1752019483053,1.45470989,109030.0,109020.0,0.00609014]
[1752019484752,1.46990989,109030.0,109020.0,0.00609014]
[1752019484979,1.46990989,109030.0,109020.0,0.02326694]
[1752019487980,1.45470989,109030.0,109020.0,0.02326694]
[1752019489756,1.45470989,109030.0,109020.0,0.0020467]
[1752019493644,1.47100989,109030.0,109020.0,0.0020467]
[1752019496666,1.55209066,109030.0,109020.0,0.0020467]
[1752019497117,1.48700989,109030.0,109020.0,0.0020467]
[1752019497745,1.47100989,109030.0,109020.0,0.0020467]
[1752019497946,0.20181574,109010.0,109000.0,0.034]
[1752019498158,0.57053267,109010.0,109000.0,0.0552897]
[1752019498358,0.57053267,109010.0,109000.0,0.0392897]
[1752019498576,0.57053267,109010.0,109000.0,0.02209449]
[1752019498997,0.57053267,109010.0,109000.0,0.02409449]
[1752019499413,0.57053267,109010.0,109000.0,0.03949449]
[1752019499614,0.57053267,109010.0,109000.0,0.03749449]
[1752019499963,0.57053267,109010.0,109000.0,0.03849449]
[1752019500372,0.57053267,109010.0,109000.0,0.05569379]
[1752019501593,0.57053267,109010.0,109000.0,0.05669379]
[1752019502174,0.57053267,109010.0,109000.0,0.03949449]
[1752019502452,0.57053267,109010.0,109000.0,0.05669545]
[1752019503804,0.646251,109010.0,109000.0,0.05669545]
[1752019504416,0.57053267,109010.0,109000.0,0.05669545]
[1752019507388,0.56135937,109010.0,109000.0,0.05669545]
[1752019507684,0.57053267,109010.0,109000.0,0.05669545]
[1752019509715,0.57053267,109010.0,109000.0,0.03949449]
[1752019514183,0.57053267,109010.0,109000.0,0.02409449]
[1752019521853,0.57053267,109010.0,109000.0,0.04129971]
[1752019522371,0.57053267,109010.0,109000.0,0.04133979]
[1752019525291,0.57053267,109010.0,109000.0,0.04134516]
[1752019538821,0.64997991,109010.0,109000.0,0.04134516]
[1752019539779,0.57053267,109010.0,109000.0,0.04134516]
[1752019540197,0.57053267,109010.0,109000.0,0.03725729]
[1752019540406,0.57053267,109010.0,109000.0,0.04134931]
[1752019542994,0.57053267,109010.0,109000.0,0.02534931]
[1752019544826,0.57053267,109010.0,109000.0,0.00813872]
[1752019545565,0.57053267,109010.0,109000.0,0.02535777]
[1752019548353,0.57053267,109010.0,109000.0,0.0253578]
[1752019553969,0.57053267,109010.0,109000.0,0.02535823]
[1752019556893,0.57053267,109010.0,109000.0,0.02535857]
[1752019558641,0.57053267,109010.0,109000.0,0.02535862]
[1752019567437,0.57053267,109010.0,109000.0,0.02535915]
[1752019573194,0.57053267,109010.0,109000.0,0.02535909]
[1752019573400,0.56135963,109010.0,109000.0,0.02535909]
[1752019574159,0.57053267,109010.0,109000.0,0.02535909]
[1752019575798,0.57053267,109010.0,109000.0,0.00813888]
[1752019576008,0.57053267,109010.0,109000.0,0.00817664]
[1752019576637,0.57053267,109010.0,109000.0,0.02447664]
[1752019578408,0.57053267,109010.0,109000.0,0.23318643]
[1752019578409,0.34041574,109010.0,109000.0,0.23318643]
[1752019578612,0.3312427,109010.0,109000.0,0.23318643]
[1752019578784,0.3312427,109010.0,109000.0,0.24236065]
[1752019578990,0.3312427,109010.0,109000.0,0.24236016]
[1752019579255,0.67916695,109020.0,109010.0,0.19264287]
[1752019579471,0.00917187,109020.0,109010.0,0.39136226]
[1752019579674,0.02751636,109020.0,109010.0,0.39136226]
[1752019580294,0.01834399,109020.0,109010.0,0.40857467]
[1752019580530,0.02751636,109020.0,109010.0,0.40857467]
[1752019580762,0.02751628,109020.0,109010.0,0.40857467]
[1752019581201,0.02851619,109020.0,109010.0,0.45088644]
[1752019581662,0.02751619,109020.0,109010.0,0.40955775]
[1752019582075,0.02751619,109020.0,109010.0,0.41055775]
[1752019582542,0.03668865,109020.0,109010.0,0.41055775]
[1752019582730,0.03668856,109020.0,109010.0,0.41055775]
[1752019583034,0.02751619,109020.0,109010.0,0.41055775]
[1752019583653,0.02751628,109020.0,109010.0,0.41055775]
[1752019584298,0.02751628,109020.0,109010.0,0.39336226]
[1752019584501,0.01834399,109020.0,109010.0,0.39336226]
[1752019585556,0.00917187,109020.0,109010.0,0.39336226]
[1752019585757,0.02751602,109020.0,109010.0,0.39336226]
[1752019585973,0.02751594,109020.0,109010.0,0.39336226]
[1752019586159,0.00917187,109020.0,109010.0,0.39336226]
[1752019586363,0.01834399,109020.0,109010.0,0.39336226]
[1752019587032,0.37798065,109030.0,109020.0,0.24166968]
[1752019587349,0.05632346,109030.0,109020.0,0.25084171]
[1752019588189,0.05732346,109030.0,109020.0,0.25084171]
[1752019589715,0.06649524,109030.0,109020.0,0.24166968]
[1752019590593,0.24075988,109030.0,109020.0,0.24166968]
[1752019592973,0.001,109030.0,109020.0,0.25084171]
[1752019593191,0.01017119,109030.0,109020.0,0.25084171]
[1752019593398,0.001,109030.0,109020.0,0.25084171]
[1752019594046,0.52321131,109040.0,109030.0,0.24345009]
[1752019594230,0.03668208,109040.0,109030.0,0.38201009]
[1752019594461,0.04585294,109040.0,109030.0,0.38201009]
[1752019594680,0.23640763,109040.0,109030.0,0.3728389]
[1752019594891,0.24557857,109040.0,109030.0,0.38201026]
[1752019595118,0.23640813,109040.0,109030.0,0.38201026]
[1752019595327,0.23640813,109040.0,109030.0,0.39915815]
[1752019595540,0.05298921,109040.0,109030.0,0.40932943]
[1752019595673,0.03668326,109040.0,109030.0,0.41850062]
[1752019595885,0.02751232,109040.0,109030.0,0.41850062]
[1752019596086,0.01834146,109040.0,109030.0,0.41850062]
[1752019596990,0.20176038,109040.0,109030.0,0.40015815]
[1752019597398,0.21093132,109040.0,109030.0,0.40115815]
[1752019598008,0.22725002,109040.0,109030.0,0.40115815]
[1752019598390,0.21093132,109040.0,109030.0,0.41032943]
[1752019599209,0.21093132,109040.0,109030.0,0.40115815]
[1752019599408,0.21093132,109040.0,109030.0,0.39198679]
[1752019599622,0.21093132,109040.0,109030.0,0.03514789]
[1752019599753,0.22468986,109040.0,109030.0,0.01914789]
[1752019599952,0.22468986,109040.0,109030.0,0.15770789]
[1752019601719,0.22468986,109040.0,109030.0,0.01914789]
[1752019601924,0.31612679,109040.0,109030.0,0.01914789]
[1752019602136,0.31612679,109040.0,109030.0,0.15766789]
[1752019603214,0.33174104,109040.0,109030.0,0.15766789]
[1752019605458,0.33174104,109040.0,109030.0,0.01914789]
[1752019605631,0.33174104,109040.0,109030.0,0.15766789]
[1752019609631,0.33174104,109040.0,109030.0,0.01914789]
[1752019609841,0.33174104,109040.0,109030.0,0.15766789]
[1752019610672,0.33174104,109040.0,109030.0,0.01914789]
[1752019610875,0.33174104,109040.0,109030.0,0.15766789]
[1752019616278,0.33174104,109040.0,109030.0,0.15771778]
[1752019618958,0.33174104,109040.0,109030.0,0.15772056]
[1752019619567,0.33174104,109040.0,109030.0,0.01920056]
[1752019619769,0.33174104,109040.0,109030.0,0.15772056]
[1752019620757,0.81026104,109040.0,109030.0,0.01920056]
[1752019620963,1.30596104,109040.0,109030.0,0.01920056]
[1752019626777,0.81026104,109040.0,109030.0,0.01920056]
[1752019627017,0.81026104,109040.0,109030.0,0.01919011]
[1752019633843,0.83783004,109040.0,109030.0,0.01919011]
[1752019637620,0.81026104,109040.0,109030.0,0.01919011]
[1752019639993,0.80110104,109040.0,109030.0,0.01919011]
[1752019641262,0.80110104,109040.0,109030.0,0.0191914]
[1752019646881,0.81564189,109040.0,109030.0,0.0191914]
[1752019650007,0.81564189,109040.0,109030.0,0.01921429]
[1752019658758,0.90707882,109040.0,109030.0,0.01921429]
[1752019658960,0.81564189,109040.0,109030.0,0.01921429]
[1752019659979,0.81564189,109040.0,109030.0,0.01821429]
[1752019660588,0.20179723,109020.0,109010.0,0.0327]
[1752019660759,0.20179723,109020.0,109010.0,0.04991344]
[1752019660760,0.43203416,109020.0,109010.0,0.04991344]
[1752019661661,0.43203416,109020.0,109010.0,0.05091344]
[1752019662284,0.43203416,109020.0,109010.0,0.05191344]
[1752019667100,0.43203416,109020.0,109010.0,0.0347]
[1752019689345,0.43203416,109020.0,109010.0,0.05191148]
[1752019691154,0.43203416,109020.0,109010.0,0.03541148]
[1752019695250,0.43203416,109020.0,109010.0,0.03541714]
[1752019697096,0.43203416,109020.0,109010.0,0.05191714]
[1752019706192,0.4228617,109020.0,109010.0,0.05191714]
[1752019706640,0.43203416,109020.0,109010.0,0.05191404]
[1752019709591,0.43203416,109020.0,109010.0,0.01921404]
[1752019710504,0.43203416,109020.0,109010.0,0.03481404]
[1752019715389,0.43203416,109020.0,109010.0,0.01921404]
[1752019717144,0.43203416,109020.0,109010.0,0.03481404]
[1752019718113,0.01834415,109020.0,109010.0,0.26210283]
[1752019718318,0.50487119,109030.0,109020.0,0.24226935]
[1752019718685,0.523214,109030.0,109020.0,0.39804339]
[1752019718890,0.53238561,109030.0,109020.0,0.43937208]
[1752019719116,0.523214,109030.0,109020.0,0.43937208]
[1752019719321,0.523214,109030.0,109020.0,0.44349843]
[1752019720185,0.53238561,109030.0,109020.0,0.44449843]
[1752019720628,0.54155731,109030.0,109020.0,0.40316974]
[1752019721959,0.71582187,109030.0,109020.0,0.39399771]
[1752019722162,0.71582187,109030.0,109020.0,0.40316991]
[1752019723438,0.71582187,109030.0,109020.0,0.41234203]
[1752019724692,0.71582187,109030.0,109020.0,0.42151406]
[1752019724693,0.53238612,109030.0,109020.0,0.42151406]
[1752019724906,0.52321442,109030.0,109020.0,0.42151406]
[1752019725570,0.53238612,109030.0,109020.0,0.42151406]
[1752019727557,0.52321442,109030.0,109020.0,0.42151406]
[1752019728885,0.53238612,109030.0,109020.0,0.42151406]
[1752019729835,0.53238612,109030.0,109020.0,0.42162176]
[1752019731475,0.52321442,109030.0,109020.0,0.42162176]
[1752019734380,0.51404231,109030.0,109020.0,0.42162176]
[1752019734557,0.52321376,109030.0,109020.0,0.42162176]
[1752019735564,0.51404231,109030.0,109020.0,0.41738771]
[1752019735819,0.52321367,109030.0,109020.0,0.4629502]
[1752019736383,0.51404231,109030.0,109020.0,0.4629502]
[1752019737176,0.52321367,109030.0,109020.0,0.4629502]
[1752019739465,0.51404231,109030.0,109020.0,0.4629502]
[1752019739866,0.51404222,109030.0,109020.0,0.4629502]
[1752019740069,0.37593927,109050.0,109040.0,0.20176021]
[1752019740268,0.002,109050.0,109040.0,0.4036384]
[1752019740846,0.002,109050.0,109040.0,0.65008206]
[1752019741059,0.4957,109060.0,109050.0,0.21091139]
[1752019741263,0.49616754,109060.0,109050.0,0.49759909]
[1752019742769,0.49616754,109060.0,109050.0,0.50254934]
[1752019743180,0.49616754,109060.0,109050.0,0.50454934]
[1752019744839,0.00046754,109060.0,109050.0,0.55959269]
[1752019745043,0.00046754,109060.0,109050.0,0.55535885]
[1752019745466,0.00046754,109060.0,109050.0,0.65313722]
[1752019745660,0.00046754,109060.0,109050.0,0.73570224]
[1752019745831,0.00046754,109060.0,109050.0,0.73070224]
[1752019746047,0.00046754,109060.0,109050.0,0.72870224]
[1752019746253,0.00046754,109060.0,109050.0,0.73870224]
[1752019746435,0.00046754,109060.0,109050.0,0.65613722]
[1752019747258,0.00046754,109060.0,109050.0,0.73870224]
[1752019747426,0.00046754,109060.0,109050.0,0.65613722]
[1752019747626,0.00046754,109060.0,109050.0,0.70613722]
[1752019749409,0.00046754,109060.0,109050.0,0.747163]
[1752019751510,0.00046754,109060.0,109050.0,1.087163]
[1752019751726,0.00046754,109060.0,109050.0,1.14324309]
[1752019751952,0.00046754,109060.0,109050.0,1.11574874]
[1752019752380,0.00046754,109060.0,109050.0,1.17037767]
[1752019754586,0.00046754,109060.0,109050.0,1.17029767]
[1752019754817,0.00046754,109060.0,109050.0,1.12869723]
[1752019755565,0.00046754,109060.0,109050.0,1.08773265]
[1752019759396,0.00046754,109060.0,109050.0,1.06018365]
[1752019760304,0.00046754,109060.0,109050.0,0.9068028]
[1752019760521,0.00046754,109060.0,109050.0,1.0459228]
[1752019760740,0.00046754,109060.0,109050.0,1.08690785]
[1752019761435,0.00046754,109060.0,109050.0,1.0459228]
[1752019762748,0.00046754,109060.0,109050.0,0.9068028]
[1752019762973,0.05857398,109060.0,109050.0,0.56317092]
[1752019763187,0.06774316,109060.0,109050.0,0.58151003]
[1752019763413,0.25112912,109060.0,109050.0,0.41488107]
[1752019763674,0.25112912,109060.0,109050.0,0.57238051]
[1752019763675,0.06774383,109060.0,109050.0,0.57238051]
[1752019763893,0.06774383,109060.0,109050.0,0.5405397]
[1752019764488,0.25112912,109060.0,109050.0,0.5405397]
[1752019764708,0.25112912,109060.0,109050.0,0.4905397]
[1752019765358,0.24196028,109060.0,109050.0,0.4813701]
[1752019765760,0.23279127,109060.0,109050.0,0.47220042]
[1752019766380,0.23279127,109060.0,109050.0,0.4721663]
[1752019766819,0.23279127,109060.0,109050.0,0.5221663]
[1752019767252,0.23279127,109060.0,109050.0,0.56317671]
[1752019767476,0.22362209,109060.0,109050.0,0.54483702]
[1752019767692,0.22362209,109060.0,109050.0,0.55400712]
[1752019768121,0.22362209,109060.0,109050.0,0.41484712]
[1752019768334,0.22362209,109060.0,109050.0,0.55400712]
[1752019768550,0.21445283,109060.0,109050.0,0.36139492]
[1752019770128,0.21445283,109060.0,109050.0,0.32038451]
[1752019771209,0.20785283,109060.0,109050.0,0.32038451]
[1752019772071,0.20785283,109060.0,109050.0,0.32043704]
[1752019777991,0.00916884,109060.0,109050.0,0.53134851]
[1752019778189,0.33411354,109070.0,109060.0,0.19255438]
[1752019778393,0.33411354,109070.0,109060.0,0.12136374]
[1752019779443,0.33411354,109070.0,109060.0,0.12336374]
[1752019779864,0.33411354,109070.0,109060.0,0.12836374]
[1752019780234,0.33411354,109070.0,109060.0,0.32091821]
[1752019780457,0.33411354,109070.0,109060.0,0.3300873]
[1752019780902,0.33411354,109070.0,109060.0,0.32091821]
[1752019781103,0.32494521,109070.0,109060.0,0.32091821]
[1752019781285,0.31577679,109070.0,109060.0,0.12836374]
[1752019782810,0.31577679,109070.0,109060.0,0.26748374]
[1752019786682,0.31577679,109070.0,109060.0,0.26784907]
[1752019787989,0.31577679,109070.0,109060.0,0.2506855]
[1752019793930,0.31577679,109070.0,109060.0,0.26788145]
[1752019796702,0.31577679,109070.0,109060.0,0.26772145]
[1752019809974,0.31577679,109070.0,109060.0,0.26764145]
[1752019811693,0.31577679,109070.0,109060.0,0.26765286]
[1752019812462,1.04667189,109070.0,109060.0,0.02880948]
[1752019812675,1.02489372,109070.0,109060.0,0.02880948]
[1752019813103,1.02489372,109070.0,109060.0,0.02380948]
[1752019813326,1.03943457,109070.0,109060.0,0.02380948]
[1752019813533,1.03943457,109070.0,109060.0,0.02680948]
[1752019813743,1.03943457,109070.0,109060.0,0.02480948]
[1752019814161,1.03943457,109070.0,109060.0,0.02580948]
[1752019814622,1.03943457,109070.0,109060.0,0.02479282]
[1752019814853,1.04143457,109070.0,109060.0,0.02479282]
[1752019815304,1.04143457,109070.0,109060.0,4.67e-05]
[1752019816155,0.20176021,109040.0,109030.0,0.04101041]
[1752019816365,0.20177881,109030.0,109020.0,0.41540704]
[1752019816572,0.20177881,109030.0,109020.0,0.53758013]
[1752019817100,0.19260753,109030.0,109020.0,0.52840767]
[1752019817327,0.19260753,109030.0,109020.0,0.52836767]
[1752019817546,0.19260753,109030.0,109020.0,0.31983614]
[1752019817975,0.19260753,109030.0,109020.0,0.30266243]
[1752019818185,0.19260753,109030.0,109020.0,0.26165202]
[1752019818420,0.19260753,109030.0,109020.0,0.26465202]
[1752019818641,0.19260753,109030.0,109020.0,0.27382464]
[1752019818847,0.19260753,109030.0,109020.0,0.48604975]
[1752019819055,0.19260753,109030.0,109020.0,0.47904975]
[1752019819496,0.19260753,109030.0,109020.0,0.48404975]
[1752019819903,0.19260753,109030.0,109020.0,0.46844975]
[1752019820114,0.18343575,109030.0,109020.0,0.26012464]
[1752019820321,0.18343575,109030.0,109020.0,0.25295202]
[1752019821150,0.18343575,109030.0,109020.0,0.11399202]
[1752019821365,0.18343575,109030.0,109020.0,0.25295202]
[1752019821845,0.18343575,109030.0,109020.0,0.26212464]
[1752019822047,0.18343575,109030.0,109020.0,0.46392221]
[1752019822461,0.18343575,109030.0,109020.0,0.47982221]
[1752019823211,0.18343575,109030.0,109020.0,0.3411719]
[1752019823417,0.18343575,109030.0,109020.0,0.4801719]
[1752019824018,0.18343575,109030.0,109020.0,0.48934427]
[1752019825478,0.18343575,109030.0,109020.0,0.25330171]
[1752019826263,0.18343575,109030.0,109020.0,0.43675428]
[1752019826464,0.18343575,109030.0,109020.0,0.44592682]
[1752019828536,0.19260753,109030.0,109020.0,0.50509911]
[1752019828894,0.19260753,109030.0,109020.0,0.50509704]
[1752019829113,0.19260753,109030.0,109020.0,0.50509721]
[1752019829342,0.19260753,109030.0,109020.0,0.51426958]
[1752019829548,0.20177906,109030.0,109020.0,0.51426958]
[1752019829970,0.20177906,109030.0,109020.0,0.53261407]
[1752019830326,0.01834331,109030.0,109020.0,0.54831356]
[1752019830730,0.01834281,109030.0,109020.0,0.54831356]
[1752019830954,0.02751442,109030.0,109020.0,0.54831356]
[1752019831435,0.01834222,109030.0,109020.0,0.56421356]
[1752019831558,0.02751358,109030.0,109020.0,0.56421356]
[1752019832457,0.01834222,109030.0,109020.0,0.56421356]
[1752019832685,0.02751358,109030.0,109020.0,0.56421356]
[1752019832936,0.01834222,109030.0,109020.0,0.56421356]
[1752019833500,0.02751358,109030.0,109020.0,0.56421356]
[1752019834949,0.03668511,109030.0,109020.0,0.56421356]
[1752019835170,0.04585672,109030.0,109020.0,0.56421356]
[1752019836913,0.04585798,109030.0,109020.0,0.56421356]
[1752019837371,0.22929373,109030.0,109020.0,0.55504153]
[1752019837755,0.22401373,109030.0,109020.0,0.55504153]
[1752019838169,0.22401373,109030.0,109020.0,0.56421365]
[1752019840173,0.22401373,109030.0,109020.0,0.60522406]
[1752019841684,0.22401373,109030.0,109020.0,0.60545357]
[1752019842862,0.22401373,109030.0,109020.0,0.60545314]
[1752019843089,0.04057798,109030.0,109020.0,0.60545314]
[1752019843746,0.0314062,109030.0,109020.0,0.60545314]
[1752019844415,0.0314062,109030.0,109020.0,0.60546965]
[1752019844857,0.0314062,109030.0,109020.0,0.66009858]
[1752019847964,0.0314062,109030.0,109020.0,0.67730933]
[1752019851595,0.21484195,109030.0,109020.0,0.49244832]
[1752019851780,0.03668662,109030.0,109020.0,0.63369298]
[1752019851923,0.03668662,109030.0,109020.0,0.6428651]
[1752019853646,0.22012237,109030.0,109020.0,0.63369298]
[1752019855538,0.21095084,109030.0,109020.0,0.63369298]
[1752019857465,0.20177923,109030.0,109020.0,0.60882078]
[1752019857794,0.20177923,109030.0,109020.0,0.61799315]
[1752019857989,0.21443575,109030.0,109020.0,0.41619575]
[1752019858221,0.21443575,109030.0,109020.0,0.27739575]
[1752019858430,0.21443575,109030.0,109020.0,0.41611575]
[1752019859267,0.21443575,109030.0,109020.0,0.36148682]
[1752019861367,0.30587268,109030.0,109020.0,0.26152344]
[1752019861610,0.30587268,109030.0,109020.0,0.12280344]
[1752019861835,0.80157268,109030.0,109020.0,0.08156352]
[1752019862023,0.80157268,109030.0,109020.0,0.22040352]
[1752019862274,0.80157268,109030.0,109020.0,0.21340352]
[1752019862731,0.80257268,109030.0,109020.0,0.21440352]
[1752019863351,1.37284961,109030.0,109020.0,0.07556352]
[1752019863563,1.28141268,109030.0,109020.0,0.02556352]
[1752019865645,1.30898268,109030.0,109020.0,0.02556352]